fUST/lending_fUST_20250116
["ID","MTS","AMOUNT","RATE_DAILY","PERIOD"]
[349169840,1737005439688,-500.0,0.00019178,2]
[349169842,1737005439698,-500.0,0.00019178,2]
[349169844,1737005439709,-500.0,0.00019178,2]
[349169846,1737005439719,-500.0,0.00019178,2]
[349169848,1737005439728,-500.0,0.00019178,2]
[349169850,1737005439738,-500.0,0.00019178,2]
[349169852,1737005439747,-434.41125741,0.00019178,2]
[349169854,1737005439756,-500.0,0.00019178,2]
[349169855,1737005439766,-500.0,0.00019178,2]
[349169857,1737005439775,-500.0,0.00019178,2]
[349169859,1737005439785,-500.0,0.00019178,2]
[349169861,1737005439795,-500.0,0.00019178,2]
[349169863,1737005439805,-413.56839047,0.00019178,2]
[349169865,1737005439814,-500.0,0.00019178,2]
[349169867,1737005439824,-500.0,0.00019178,2]
[349169869,1737005439833,-1079.1,0.00019178,2]
[349169871,1737005439842,-722.63,0.00019178,2]
[349169873,1737005439852,-20446.11,0.00019178,2]
[349169875,1737005439862,-500.0,0.00019178,2]
[349169876,1737005439871,-500.0,0.00019178,2]
[349169878,1737005439881,-500.0,0.00019178,2]
[349169880,1737005439890,-1477.53,0.00019178,2]
[349169882,1737005439899,-500.0,0.00019178,2]
[349169884,1737005439909,-500.0,0.00019178,2]
[349169887,1737005439918,-500.0,0.00019178,2]
[349169889,1737005439927,-500.0,0.00019178,2]
[349169891,1737005439938,-500.0,0.00019178,2]
[349169893,1737005439947,-831.2,0.00019178,2]
[349169895,1737005439956,-500.0,0.00019178,2]
[349169896,1737005439967,-539.32,0.00019178,2]
[349169898,1737005439977,-500.0,0.00019178,2]
[349169901,1737005439986,-1076.09,0.00019178,2]
[349169903,1737005439996,-500.0,0.00019178,2]
[349169905,1737005440006,-882.13,0.00019178,2]
[349169907,1737005440016,-500.0,0.00019178,2]
[349169909,1737005440027,-3188.11,0.00019178,2]
[349169911,1737005440036,-9128.49,0.00019178,2]
[349169913,1737005440046,-1845.71,0.00019178,2]
[349169915,1737005440055,-500.0,0.00019178,2]
[349169916,1737005440068,-574.71824965,0.00019178,2]
[349169918,1737005440079,-500.0,0.00019178,2]
[349169920,1737005440088,-2769.11,0.00019178,2]
[349169922,1737005440097,-1550.96,0.00019178,2]
[349169924,1737005440107,-4369.95,0.00019178,2]
[349169926,1737005440117,-500.0,0.00019178,2]
[349169928,1737005440126,-806.04,0.00019178,2]
[349169930,1737005440136,-530.77389123,0.00019178,2]
[349169933,1737005440161,-10288.01640447,0.00019178,2]
[349169935,1737005440172,-2189.4397043,0.00019178,2]
[349169937,1737005440182,-500.0,0.00019178,2]
[349169939,1737005440191,-500.0,0.00019178,2]
[349169941,1737005440201,-548.43,0.00019178,2]
[349169943,1737005440210,-746.38,0.00019178,2]
[349169945,1737005440219,-665.82,0.00019178,2]
[349169947,1737005440229,-1297.77,0.00019178,2]
[349169949,1737005440239,-500.0,0.00019178,2]
[349169951,1737005440248,-500.0,0.00019178,2]
[349169952,1737005440257,-500.0,0.00019178,2]
[349169954,1737005440267,-500.0,0.00019178,2]
[349169956,1737005440276,-500.0,0.00019178,2]
[349169958,1737005440286,-500.0,0.00019178,2]
[349169960,1737005440295,-500.0,0.00019178,2]
[349169962,1737005440304,-500.0,0.00019178,2]
[349169964,1737005440314,-215.65,0.00019178,2]
[349169966,1737005440323,-1067.56,0.00019178,2]
[349169967,1737005440332,-500.0,0.00019178,2]
[349169969,1737005440342,-500.0,0.00019178,2]
[349169971,1737005440351,-3535.82639241,0.00019178,2]
[349170291,1737005443879,-153.0,0.00019,2]
[349170292,1737005443888,-215.0156227,0.00019,2]
[349170293,1737005443898,-34623.23005448,0.00019178,2]
[349170298,1737005464046,161.688397,0.00013973,2]
[349170313,1737006358408,162.037176,0.00013973,2]
[349170391,1737006632984,-3825.1444954,0.00018182,2]
[349170393,1737006632994,-230.110057,0.00018188,2]
[349170395,1737006633006,-514.527,0.0001822,2]
[349170397,1737006633016,-182.2787872,0.00018986,2]
[349170399,1737006633025,-5000.0,0.00019012,7]
[349170401,1737006633036,-199.20126343,0.00019078,2]
[349170404,1737006633046,-285.0,0.00019172,2]
[349170405,1737006633055,-300.0,0.00019172,2]
[349170424,1737006633234,-245.23136529,0.00019173,2]
[349170426,1737006633245,-158.97,0.00019177,2]
[349170429,1737006633255,-596.30831965,0.00019177,2]
[349170431,1737006633265,-499.0,0.00019177,2]
[349170433,1737006633275,-177.40109181,0.00019177,2]
[349170435,1737006633285,-251.77687837,0.00019177,2]
[349170436,1737006633295,-500.0,0.00019178,2]
[349170438,1737006633305,-500.0,0.00019178,2]
[349170441,1737006633314,-500.0,0.00019178,2]
[349170443,1737006633325,-577.03,0.00019178,2]
[349170445,1737006633335,-558.08,0.00019178,2]
[349170446,1737006633344,-500.0,0.00019178,2]
[349170449,1737006633354,-500.0,0.00019178,2]
[349170451,1737006633363,-500.0,0.00019178,2]
[349170453,1737006633373,-375.78344562,0.00019178,2]
[349170455,1737006633383,-500.0,0.00019178,2]
[349170457,1737006633393,-500.0,0.00019178,7]
[349170459,1737006633404,-500.0,0.00019178,2]
[349170461,1737006633413,-500.0,0.00019178,2]
[349170463,1737006633422,-500.0,0.00019178,2]
[349170465,1737006633431,-630.68,0.00019178,2]
[349170467,1737006633441,-500.0,0.00019178,2]
[349170469,1737006633450,-500.0,0.00019178,2]
[349170471,1737006633460,-513.54,0.00019178,2]
[349170473,1737006633470,-500.0,0.00019178,2]
[349170475,1737006633479,-500.0,0.00019178,2]
[349170477,1737006633489,-500.0,0.00019178,2]
[349170479,1737006633502,-500.0,0.00019178,2]
[349170480,1737006633511,-500.0,0.00019178,2]
[349170483,1737006633522,-151.0,0.00019178,2]
[349170485,1737006633532,-500.0,0.00019178,2]
[349170487,1737006633542,-151.0,0.00019178,2]
[349170489,1737006633552,-151.0,0.00019178,2]
[349170491,1737006633562,-151.0,0.00019178,2]
[349170493,1737006633572,-151.0,0.00019178,2]
[349170495,1737006633582,-151.0,0.00019178,2]
[349170497,1737006633592,-500.0,0.00019178,2]
[349170499,1737006633602,-500.0,0.00019178,2]
[349170501,1737006633611,-500.0,0.00019178,2]
[349170503,1737006633620,-500.0,0.00019178,2]
[349170505,1737006633630,-500.0,0.00019178,2]
[349170507,1737006633640,-500.0,0.00019178,2]
[349170509,1737006633650,-500.0,0.00019178,2]
[349170511,1737006633660,-578.32,0.00019178,2]
[349170513,1737006633670,-151.0,0.00019178,2]
[349170515,1737006633679,-151.0,0.00019178,2]
[349170517,1737006633688,-500.0,0.00019178,2]
[349170519,1737006633697,-500.0,0.00019178,2]
[349170521,1737006633707,-500.0,0.00019178,2]
[349170522,1737006633716,-510.68591112,0.00019178,2]
[349170524,1737006633726,-500.0,0.00019178,2]
[349170527,1737006633735,-885.77,0.00019178,2]
[349170528,1737006633745,-500.0,0.00019178,2]
[349170529,1737006633755,-500.0,0.00019178,2]
[349170530,1737006633765,-151.0,0.00019178,2]
[349170531,1737006633775,-151.0,0.00019178,2]
[349170532,1737006633784,-151.0,0.00019178,2]
[349170533,1737006633794,-151.0,0.00019178,2]
[349170534,1737006633804,-151.0,0.00019178,2]
[349170535,1737006633815,-151.0,0.00019178,2]
[349170537,1737006633824,-164.186469,0.00019178,2]
[349170539,1737006633834,-1143.86,0.00019178,2]
[349170541,1737006633844,-500.0,0.00019178,2]
[349170543,1737006633853,-500.0,0.00019178,2]
[349170545,1737006633863,-872.35,0.00019178,2]
[349170547,1737006633873,-500.0,0.00019178,2]
[349170549,1737006633882,-500.0,0.00019178,2]
[349170551,1737006633891,-500.0,0.00019178,2]
[349170553,1737006633901,-715.28,0.00019178,2]
[349170555,1737006633911,-500.0,0.00019178,2]
[349170557,1737006633921,-500.0,0.00019178,2]
[349170559,1737006633930,-1081.87,0.00019178,2]
[349170561,1737006633940,-500.0,0.00019178,2]
[349170563,1737006633950,-500.0,0.00019178,2]
[349170565,1737006633960,-649.6,0.00019178,2]
[349170567,1737006633969,-701.92,0.00019178,2]
[349170569,1737006633978,-519.98,0.00019178,2]
[349170571,1737006633988,-628.5,0.00019178,2]
[349170573,1737006633997,-1291.45,0.00019178,2]
[349170575,1737006634008,-500.0,0.00019178,2]
[349170577,1737006634018,-500.0,0.00019178,2]
[349170579,1737006634028,-520.53414045,0.00019178,2]
[349170581,1737006634038,-500.0,0.00019178,2]
[349170583,1737006634048,-500.0,0.00019178,2]
[349170585,1737006634057,-151.0,0.00019178,2]
[349170587,1737006634067,-151.0,0.00019178,2]
[349170589,1737006634076,-151.0,0.00019178,2]
[349170591,1737006634085,-151.0,0.00019178,2]
[349170593,1737006634095,-151.0,0.00019178,2]
[349170595,1737006634104,-151.0,0.00019178,2]
[349170597,1737006634114,-151.0,0.00019178,2]
[349170599,1737006634123,-151.0,0.00019178,2]
[349170601,1737006634134,-500.0,0.00019178,2]
[349170603,1737006634144,-500.0,0.00019178,2]
[349170605,1737006634153,-656.71,0.00019178,2]
[349170607,1737006634162,-223.38225728,0.00019178,2]
[349170609,1737006634172,-500.0,0.00019178,2]
[349170611,1737006634184,-500.0,0.00019178,2]
[349170613,1737006634193,-500.0,0.00019178,2]
[349170615,1737006634203,-775.62,0.00019178,2]
[349170617,1737006634213,-153.188739,0.00019178,2]
[349170619,1737006634223,-544.36,0.00019178,2]
[349170621,1737006634232,-151.0,0.00019178,2]
[349170623,1737006634242,-151.0,0.00019178,2]
[349170625,1737006634252,-151.0,0.00019178,2]
[349170626,1737006634262,-1133.0,0.00019178,2]
[349170628,1737006634272,-151.0,0.00019178,2]
[349170631,1737006634282,-151.0,0.00019178,2]
[349170633,1737006634291,-151.0,0.00019178,2]
[349170635,1737006634301,-292.695883,0.00019178,2]
[349170637,1737006634310,-500.0,0.00019178,2]
[349170639,1737006634320,-500.0,0.00019178,2]
[349170641,1737006634330,-500.0,0.00019178,2]
[349170643,1737006634339,-500.0,0.00019178,2]
[349170645,1737006634349,-755.59,0.00019178,2]
[349170647,1737006634360,-500.0,0.00019178,2]
[349170649,1737006634370,-500.0,0.00019178,2]
[349170651,1737006634379,-151.0,0.00019178,2]
[349170653,1737006634388,-151.0,0.00019178,2]
[349170655,1737006634397,-151.0,0.00019178,2]
[349170656,1737006634408,-151.0,0.00019178,2]
[349170659,1737006634419,-151.0,0.00019178,2]
[349170660,1737006634429,-151.0,0.00019178,2]
[349170663,1737006634439,-151.0,0.00019178,2]
[349170665,1737006634449,-500.0,0.00019178,2]
[349170666,1737006634458,-151.0,0.00019178,2]
[349170668,1737006634468,-186.954266,0.00019178,2]
[349170671,1737006634478,-224.294,0.00019178,2]
[349170673,1737006634492,-500.0,0.00019178,2]
[349170675,1737006634509,-151.0,0.00019178,2]
[349170678,1737006634523,-500.0,0.00019178,2]
[349170680,1737006634537,-500.0,0.00019178,2]
[349170683,1737006634549,-500.0,0.00019178,2]
[349170685,1737006634563,-500.0,0.00019178,2]
[349170687,1737006634578,-500.0,0.00019178,2]
[349170689,1737006634591,-1022.8,0.00019178,2]
[349170692,1737006634604,-1034.13,0.00019178,2]
[349170694,1737006634616,-366.41628292,0.00019178,2]
[349170696,1737006634629,-500.0,0.00019178,2]
[349170699,1737006634641,-151.0,0.00019178,2]
[349170701,1737006634654,-151.0,0.00019178,2]
[349170703,1737006634667,-196.894104,0.00019178,2]
[349170706,1737006634681,-500.0,0.00019178,2]
[349170708,1737006634693,-1409.90239221,0.00019178,2]
[349171472,1737007118157,149364.6672973,0.00025,120]
[349171474,1737007222234,162.354249,0.00013973,2]
[349171539,1737007831926,-1406.7949328,0.00018085,2]
[349171541,1737007831936,-94.92067968,0.00018183,2]
[349171547,1737007831985,-135.18937732,0.00018183,2]
[349171549,1737007831995,-493.226,0.0001822,2]
[349171551,1737007832005,-2310.0,0.00018833,2]
[349171553,1737007832014,-395.0,0.00018833,2]
[349171555,1737007832025,-195.5935407,0.00018986,2]
[349171557,1737007832034,-306.14763496,0.00019078,2]
[349171559,1737007832044,-198.0,0.000191,4]
[349171561,1737007832054,-198.0,0.000191,4]
[349171563,1737007832063,-198.0,0.000191,5]
[349171565,1737007832073,-198.0,0.000191,5]
[349171568,1737007832082,-198.0,0.000191,6]
[349171570,1737007832091,-500.0,0.00019173,2]
[349171572,1737007832101,-500.0,0.00019173,2]
[349171574,1737007832110,-500.0,0.00019173,2]
[349171576,1737007832119,-300.0,0.00019176,2]
[349171578,1737007832129,-176.24381485,0.00019177,2]
[349171580,1737007832138,-217.90496367,0.00019177,2]
[349171582,1737007832147,-500.0,0.00019177,2]
[349171584,1737007832156,-500.0,0.00019178,2]
[349171586,1737007832166,-7126.3269019,0.00019178,2]
[349171588,1737007832176,-500.0,0.00019178,2]
[349171590,1737007832186,-500.0,0.00019178,2]
[349171591,1737007832195,-500.0,0.00019178,2]
[349171593,1737007832205,-500.0,0.00019178,2]
[349171596,1737007832214,-500.0,0.00019178,2]
[349171598,1737007832224,-500.0,0.00019178,2]
[349171599,1737007832233,-500.0,0.00019178,2]
[349171600,1737007832242,-500.0,0.00019178,2]
[349171601,1737007832252,-511.38921058,0.00019178,2]
[349171602,1737007832262,-685.47,0.00019178,2]
[349171603,1737007832272,-500.0,0.00019178,2]
[349171604,1737007832283,-500.0,0.00019178,2]
[349171605,1737007832293,-500.0,0.00019178,2]
[349171606,1737007832302,-500.0,0.00019178,2]
[349171607,1737007832312,-500.0,0.00019178,2]
[349171608,1737007832321,-500.0,0.00019178,2]
[349171609,1737007832331,-500.0,0.00019178,2]
[349171610,1737007832341,-500.0,0.00019178,2]
[349171611,1737007832351,-516.42,0.00019178,2]
[349171612,1737007832361,-500.0,0.00019178,2]
[349171614,1737007832370,-500.0,0.00019178,2]
[349171616,1737007832380,-500.0,0.00019178,2]
[349171618,1737007832389,-500.0,0.00019178,2]
[349171620,1737007832398,-151.0,0.00019178,2]
[349171622,1737007832408,-157.116989,0.00019178,2]
[349171624,1737007832417,-500.0,0.00019178,2]
[349171626,1737007832426,-500.0,0.00019178,2]
[349171628,1737007832435,-515.54149168,0.00019178,2]
[349171630,1737007832444,-153.015441,0.00019178,2]
[349171632,1737007832453,-504.05386802,0.00019178,2]
[349171634,1737007832462,-500.0,0.00019178,2]
[349171636,1737007832472,-500.0,0.00019178,2]
[349171639,1737007832482,-302.87424932,0.00019178,2]
[349171641,1737007832491,-554.22,0.00019178,2]
[349171643,1737007832500,-860.16,0.00019178,2]
[349171645,1737007832510,-500.0,0.00019178,2]
[349171647,1737007832519,-621.39,0.00019178,2]
[349171649,1737007832529,-1117.03,0.00019178,2]
[349171651,1737007832538,-500.0,0.00019178,2]
[349171653,1737007832548,-500.0,0.00019178,2]
[349171655,1737007832557,-500.0,0.00019178,2]
[349171657,1737007832567,-1057.62,0.00019178,2]
[349171658,1737007832576,-568.96582375,0.00019178,2]
[349171660,1737007832586,-500.0,0.00019178,2]
[349171661,1737007832595,-622.53,0.00019178,2]
[349171662,1737007832604,-589.21,0.00019178,2]
[349171663,1737007832614,-500.0,0.00019178,2]
[349171664,1737007832623,-500.0,0.00019178,2]
[349171665,1737007832632,-1279.31,0.00019178,2]
[349171666,1737007832643,-500.0,0.00019178,2]
[349171667,1737007832652,-500.0,0.00019178,2]
[349171668,1737007832661,-500.0,0.00019178,2]
[349171669,1737007832671,-602.31,0.00019178,2]
[349171670,1737007832680,-650.18,0.00019178,2]
[349171671,1737007832689,-500.0,0.00019178,2]
[349171673,1737007832699,-208.410832,0.00019178,2]
[349171675,1737007832708,-500.0,0.00019178,2]
[349171677,1737007832718,-170.30925434,0.00019178,2]
[349171679,1737007832728,-500.0,0.00019178,2]
[349171681,1737007832738,-500.0,0.00019178,2]
[349171683,1737007832747,-175.45819351,0.00019178,2]
[349171685,1737007832757,-500.0,0.00019178,2]
[349171687,1737007832766,-500.0,0.00019178,2]
[349171688,1737007832775,-500.0,0.00019178,2]
[349171690,1737007832785,-151.0,0.00019178,2]
[349171692,1737007832794,-151.0,0.00019178,2]
[349171694,1737007832803,-152.767249,0.00019178,2]
[349171696,1737007832813,-500.0,0.00019178,2]
[349171699,1737007832823,-521.68,0.00019178,2]
[349171701,1737007832832,-500.0,0.00019178,2]
[349171703,1737007832842,-12554.97,0.00019178,2]
[349171705,1737007832852,-1106.63,0.00019178,2]
[349171707,1737007832862,-500.0,0.00019178,2]
[349171709,1737007832871,-151.0,0.00019178,2]
[349171710,1737007832884,-151.0,0.00019178,2]
[349171712,1737007832893,-151.0,0.00019178,2]
[349171714,1737007832903,-753.35,0.00019178,2]
[349171716,1737007832912,-500.0,0.00019178,2]
[349171718,1737007832921,-500.0,0.00019178,2]
[349171720,1737007832930,-500.0,0.00019178,2]
[349171722,1737007832940,-151.0,0.00019178,2]
[349171724,1737007832950,-151.0,0.00019178,2]
[349171726,1737007832960,-151.0,0.00019178,2]
[349171728,1737007832970,-151.0,0.00019178,2]
[349171730,1737007832979,-151.0,0.00019178,2]
[349171732,1737007832988,-151.0,0.00019178,2]
[349171734,1737007832997,-151.0,0.00019178,2]
[349171736,1737007833007,-501.53,0.00019178,2]
[349171737,1737007833017,-500.0,0.00019178,7]
[349171738,1737007833026,-552.99,0.00019178,2]
[349171739,1737007833036,-724.11,0.00019178,2]
[349171740,1737007833187,-500.0,0.00019178,2]
[349171741,1737007833198,-500.0,0.00019178,2]
[349171742,1737007833208,-500.0,0.00019178,2]
[349171743,1737007833219,-500.0,0.00019178,2]
[349171744,1737007833230,-500.0,0.00019178,2]
[349171745,1737007833240,-500.0,0.00019178,2]
[349171746,1737007833250,-500.0,0.00019178,2]
[349171747,1737007833260,-991.05,0.00019178,2]
[349171748,1737007833270,-2142.77,0.00019178,2]
[349171749,1737007833280,-2478.1,0.00019178,2]
[349171750,1737007833290,-500.0,0.00019178,2]
[349171751,1737007833300,-500.0,0.00019178,2]
[349171752,1737007833309,-500.0,0.00019178,2]
[349171753,1737007833319,-500.0,0.00019178,2]
[349171754,1737007833329,-152.152907,0.00019178,2]
[349171755,1737007833339,-500.0,0.00019178,2]
[349171756,1737007833348,-500.0,0.00019178,2]
[349171757,1737007833359,-500.0,0.00019178,2]
[349171758,1737007833369,-4590.33,0.00019178,2]
[349171759,1737007833378,-1912.73,0.00019178,2]
[349171760,1737007833388,-151.0,0.00019178,2]
[349171761,1737007833398,-151.0,0.00019178,2]
[349171762,1737007833408,-151.0,0.00019178,2]
[349171763,1737007833417,-151.0,0.00019178,2]
[349171764,1737007833428,-151.0,0.00019178,2]
[349171765,1737007833438,-151.0,0.00019178,2]
[349171766,1737007833448,-151.0,0.00019178,2]
[349171767,1737007833458,-151.0,0.00019178,2]
[349171768,1737007833468,-500.0,0.00019178,2]
[349171769,1737007833478,-151.0,0.00019178,2]
[349171770,1737007833488,-151.0,0.00019178,2]
[349171771,1737007833499,-151.0,0.00019178,2]
[349171772,1737007833510,-151.0,0.00019178,2]
[349171773,1737007833520,-151.0,0.00019178,2]
[349171774,1737007833531,-151.0,0.00019178,2]
[349171775,1737007833541,-534.83,0.00019178,2]
[349171776,1737007833552,-500.0,0.00019178,2]
[349171777,1737007833562,-1001.02,0.00019178,2]
[349171778,1737007833573,-614.209539,0.00019178,2]
[349171779,1737007833583,-614.209539,0.00019178,2]
[349171780,1737007833593,-614.209539,0.00019178,2]
[349171781,1737007833603,-614.209539,0.00019178,2]
[349171782,1737007833614,-614.209539,0.00019178,2]
[349171783,1737007833624,-614.209539,0.00019178,2]
[349171784,1737007833635,-614.209539,0.00019178,2]
[349171785,1737007833645,-157.342555,0.00019178,2]
[349171786,1737007833654,-500.0,0.00019178,2]
[349171787,1737007833665,-614.209539,0.00019178,2]
[349171788,1737007833675,-614.209539,0.00019178,2]
[349171789,1737007833685,-614.209539,0.00019178,2]
[349171790,1737007833695,-500.0,0.00019178,2]
[349171791,1737007833706,-614.209539,0.00019178,2]
[349171792,1737007833716,-614.209539,0.00019178,2]
[349171793,1737007833726,-614.209539,0.00019178,2]
[349171794,1737007833736,-614.209539,0.00019178,2]
[349171795,1737007833746,-500.0,0.00019178,2]
[349171796,1737007833757,-500.0,0.00019178,2]
[349171797,1737007833766,-26429.3,0.00019178,2]
[349171798,1737007833776,-772.46,0.00019178,2]
[349171799,1737007833787,-551.69,0.00019178,2]
[349171800,1737007833797,-500.0,0.00019178,2]
[349171801,1737007833807,-692.52,0.00019178,2]
[349171802,1737007833817,-500.0,0.00019178,2]
[349171803,1737007833828,-1415.97,0.00019178,2]
[349171804,1737007833838,-500.0,0.00019178,2]
[349171805,1737007833848,-638.08,0.00019178,2]
[349171806,1737007833858,-796.57,0.00019178,2]
[349171807,1737007833870,-516.85,0.00019178,2]
[349171808,1737007833882,-500.0,0.00019178,7]
[349171809,1737007833892,-500.0,0.00019178,2]
[349171810,1737007833901,-599.36,0.00019178,2]
[349171811,1737007833912,-8818.96,0.00019178,2]
[349171812,1737007833923,-500.0,0.00019178,2]
[349171813,1737007833932,-500.0,0.00019178,2]
[349171814,1737007833942,-506.33934603,0.00019178,2]
[349171815,1737007833952,-3089.16,0.00019178,2]
[349171816,1737007833963,-1031.25,0.00019178,2]
[349171817,1737007833973,-537.50173363,0.00019178,2]
[349171818,1737007833985,-500.0,0.00019178,2]
[349171819,1737007833995,-867.58,0.00019178,2]
[349171820,1737007834005,-500.0,0.00019178,2]
[349171821,1737007834015,-500.0,0.00019178,2]
[349171822,1737007834025,-1869.89,0.00019178,2]
[349171823,1737007834035,-4255.98,0.00019178,2]
[349171824,1737007834044,-1507.17,0.00019178,2]
[349171825,1737007834054,-869.21,0.00019178,2]
[349171826,1737007834064,-500.0,0.00019178,2]
[349171827,1737007834073,-500.0,0.00019178,2]
[349171828,1737007834083,-157.707739,0.00019178,2]
[349171829,1737007834092,-500.0,0.00019178,2]
[349171830,1737007834102,-2687.68,0.00019178,2]
[349171831,1737007834112,-525.58,0.00019178,2]
[349171832,1737007834121,-151.0,0.00019178,2]
[349171833,1737007834132,-151.0,0.00019178,2]
[349171834,1737007834142,-830.26,0.00019178,2]
[349171835,1737007834152,-151.0,0.00019178,2]
[349171836,1737007834166,-151.0,0.00019178,2]
[349171837,1737007834176,-169.020951,0.00019178,2]
[349171838,1737007834186,-500.0,0.00019178,2]
[349171839,1737007834197,-179.49069095,0.00019178,2]
[349171840,1737007834206,-19693.2,0.00019178,2]
[349171841,1737007834215,-500.0,0.00019178,2]
[349171842,1737007834225,-3833.24,0.00019178,2]
[349171843,1737007834235,-500.0,0.00019178,2]
[349171844,1737007834244,-187.139348,0.00019178,2]
[349171845,1737007834254,-500.0,0.00019178,2]
[349171846,1737007834264,-198.73,0.00019178,2]
[349171847,1737007834276,-500.0,0.00019178,2]
[349171848,1737007834285,-500.0,0.00019178,2]
[349171849,1737007834296,-500.0,0.00019178,2]
[349171850,1737007834306,-1043.91,0.00019178,2]
[349171851,1737007834316,-1264.53,0.00019178,2]
[349171852,1737007834326,-604.4,0.00019178,2]
[349171853,1737007834336,-1102.33,0.00019178,2]
[349171854,1737007834346,-1661.67,0.00019178,2]
[349171855,1737007834357,-512.60213496,0.00019178,2]
[349171856,1737007834367,-3183.47,0.00019178,2]
[349171857,1737007834377,-151.0,0.00019178,2]
[349171858,1737007834386,-154.921162,0.00019178,2]
[349171859,1737007834396,-500.0,0.00019178,2]
[349171860,1737007834405,-500.0,0.00019178,2]
[349171861,1737007834415,-500.0,0.00019178,2]
[349171862,1737007834425,-510.98275922,0.00019178,2]
[349171863,1737007834435,-1477.9,0.00019178,2]
[349171864,1737007834445,-500.0,0.00019178,2]
[349171865,1737007834455,-33327.16724601,0.00019178,2]
[349171896,1737007837844,-1875.43412888,0.00019,2]
[349171898,1737007837858,-4965.37987732,0.00019,2]
[349171903,1737007837897,-500.0,0.00019,2]
[349172108,1737007839969,-361.77,0.00019,2]
[349172115,1737007840024,-2383.2392698,0.00019,2]
[349172117,1737007840034,-7422.72275399,0.00019178,2]
[349172119,1737007840043,-500.0,0.00019178,2]
[349172121,1737007840054,-511.26589446,0.00019178,2]
[349172123,1737007840064,-500.0,0.00019178,2]
[349172125,1737007840073,-500.0,0.00019178,2]
[349172127,1737007840083,-151.0,0.00019178,2]
[349172129,1737007840093,-155.070074,0.00019178,2]
[349172131,1737007840103,-500.0,0.00019178,2]
[349172133,1737007840113,-500.0,0.00019178,2]
[349172135,1737007840123,-151.0,0.00019178,2]
[349172137,1737007840132,-151.0,0.00019178,2]
[349172139,1737007840142,-151.0,0.00019178,2]
[349172141,1737007840152,-500.0,0.00019178,2]
[349172143,1737007840162,-1164.69,0.00019178,2]
[349172146,1737007840171,-151.0,0.00019178,2]
[349172150,1737007840182,-151.0,0.00019178,2]
[349172153,1737007840191,-151.0,0.00019178,2]
[349172155,1737007840200,-539.2,0.00019178,2]
[349172157,1737007840210,-500.0,0.00019178,2]
[349172159,1737007840219,-340.27863276,0.00019178,2]
[349172161,1737007840230,-500.0,0.00019178,2]
[349172163,1737007840240,-500.0,0.00019178,2]
[349172165,1737007840250,-500.0,0.00019178,2]
[349172167,1737007840259,-500.0,0.00019178,2]
[349172169,1737007840269,-500.0,0.00019178,2]
[349172171,1737007840279,-500.0,0.00019178,2]
[349172173,1737007840287,-500.0,0.00019178,2]
[349172175,1737007840297,-465.618908,0.00019178,2]
[349172177,1737007840307,-1732.36,0.00019178,2]